Cogmind - Beta 15 @@@ ROGUE MODE // 2025.06.11 @ 19:10:55 Player: Demo Result: Destroyed by G-73 Enforcer with Phase Gun Performance ------------- Evolutions (7) 3500 Regions Visited (11) 2200 Robots Destroyed (135) 675 Value Destroyed (5637) 5637 Prototype IDs (23) 460 Alien Tech Used (0) 0 Bonus (662) 662 TOTAL SCORE: 13134 Bonus ------- High Alert Combat Kills 309 Entered DSFs 500 Friendly Fire -147 Cogmind --------- Core Integrity 0/1300 Matter 202/300 Energy 180/240 System Corruption 43% Temperature Warm (156) Movement Immobile (Siege) Location -3/Research Parts ------- > --- POWER (2) -------- Light Antimatter Reactor Light Antimatter Reactor > --- PROPULSION (6) --- Armored Heavy Treads Improved Heavy Siege Treads Improved Heavy Siege Treads (fused) > --- UTILITY (5) ------ Advanced Coolant Injector Large Storage Unit Improved Targeting Computer Advanced Remote Shield > --- WEAPON (8) ------- Gamma Rifle Gamma Rifle Compact HERF Cannon Compact HERF Cannon KE Penetrator > --- INVENTORY (15) --- Medium Treads Medium Treads Biometal Medium Treads Advanced Heat Sink Advanced Coolant Injector Advanced Coolant Injector Improved Matter Compressor (300) Advanced Signal Interpreter Weapon Mount Advanced Weapon Cycler Advanced Weapon Cycler Peak State ------------ > --- POWER ------------ Particle Reactor Light Quantum Reactor > --- PROPULSION ------- Armored Heavy Treads Improved Heavy Siege Treads Centrium Heavy Treads > --- UTILITY ---------- Advanced Heat Sink Improved Targeting Computer Improved Targeting Computer Advanced Weapon Cycler Advanced System Restoration Module > --- WEAPON ----------- Gamma Rifle Quantum Rifle Compact HERF Cannon Compact HERF Cannon KE Penetrator KE Penetrator KE Penetrator Railgun > --- INVENTORY -------- Light Antimatter Reactor Biometal Medium Treads Advanced Heat Sink Advanced Heat Sink Improved Matter Compressor [Rating: 150] Favorites ----------- Power Light Nuclear Core Engine Subdweller Power Source Power Core Light Nuclear Core Reactor Light Antimatter Reactor Propulsion Wheel Treads Light Treads Leg Constructs Wheel Wheel Hover Unit Backup Propulsion III Flight Unit Field Propulsion Drive Utility Improved Targeting Computer Device Advanced Heat Sink Storage Humpback Processor Improved Targeting Computer Protection Tower Shield Weapon KE Penetrator Energy Gun Gamma Rifle Energy Cannon Compact HERF Cannon Ballistic Gun KE Penetrator Ballistic Cannon Battle Cannon Launcher Grenade Launcher Impact Weapon Hammer Slashing Weapon Dual-blade Saw Piercing Weapon Lance Build | -11 -10 -10 -10 -7 -5 -5 -4 -4 -4 -4 -3 ------- Run | Yrd Mat Min Sub Rec Fac DSF Fac Was Fac Ext Res Slots Evolved 14 | . . . . . 10 . 2 . . . 2 Power 1 | . . . . . 1 . . . . . . Propulsion 4 | . . . . . 2 . 2 . . . . Utility 3 | . . . . . 3 . . . . . . Weapon 6 | . . . . . 4 . . . . . 2 Parts Attached 170 | 7 5 . 18 7 6 2 4 1 8 . 112 Power 21 | 1 1 . 1 2 . . . . . . 16 Engine 7 | 1 . . 1 2 . . . . . . 3 Core 1 | . 1 . . . . . . . . . . Reactor 13 | . . . . . . . . . . . 13 Propulsion 49 | 2 2 . 4 2 . 1 . . 6 . 32 Treads 17 | 1 1 . 1 . . . . . 2 . 12 Leg 7 | . . . . . . . . . . . 7 Wheel 15 | 1 1 . 3 2 . 1 . . . . 7 Hover 8 | . . . . . . . . . 4 . 4 Flight 2 | . . . . . . . . . . . 2 Utility 43 | 2 1 . 4 . 3 1 1 1 1 . 29 Device 23 | 1 . . . . 2 1 . 1 . . 18 Storage 6 | 1 1 . 1 . . . . . . . 3 Processor 8 | . . . . . . . 1 . 1 . 6 Hackware . | . . . . . . . . . . . . Protection 6 | . . . 3 . 1 . . . . . 2 Artifact . | . . . . . . . . . . . . Weapon 57 | 2 1 . 9 3 3 . 3 . 1 . 35 Energy Gun 16 | 1 1 . 1 . 1 . . . . . 12 Energy Cannon 7 | . . . 2 1 . . . . . . 4 Ballistic Gun 20 | 1 . . 3 1 1 . 1 . . . 13 Ballistic Cannon 5 | . . . 1 1 1 . . . 1 . 1 Launcher 2 | . . . 2 . . . . . . . . Special Weapon . | . . . . . . . . . . . . Impact Weapon 1 | . . . . . . . 1 . . . . Slashing Weapon 1 | . . . . . . . 1 . . . . Piercing Weapon 5 | . . . . . . . . . . . 5 Special Melee Weapon . | . . . . . . . . . . . . Unidentified Prototypes 8 | . . . . . 1 . . . . . 7 Parts Lost 99 | . 1 . 1 . . 16 4 . 19 1 57 Power 13 | . . . 1 . . 2 2 . 2 . 6 Propulsion 38 | . 1 . . . . 5 . . 10 1 21 Utility 13 | . . . . . . 2 1 . 3 . 7 Weapon 35 | . . . . . . 7 1 . 4 . 23 Highest Loss Streak 14 | . 1 . 1 . . 14 3 . 10 1 14 To Critical Strikes . | . . . . . . . . . . . . Average Backups 16 | 2 13 19 23 33 22 20 3 3 4 4 7 Power . | . . 1 . 1 . . . . . . 1 Propulsion 3 | 1 3 4 5 7 3 1 . . . 1 1 Utility 7 | . 4 5 10 15 11 13 2 3 3 2 4 Weapon 4 | . 4 8 6 8 6 5 . . . 1 . Tool/Special . | . . . . . . . . . . . . Unused Backups 67 | 1 10 . 5 8 5 16 1 . 2 . 19 Power 7 | . 2 . 1 . 2 . . . . . 2 Propulsion 13 | 1 1 . . 2 2 1 . . . . 6 Utility 38 | . 5 . . 6 1 13 1 . 2 . 10 Weapon 9 | . 2 . 4 . . 2 . . . . 1 Tool/Special . | . . . . . . . . . . . . Average Slot Usage (%) 77 | . 99 100 84 78 68 72 31 43 35 26 75 Engine 2 | . 3 . 3 7 4 7 4 . 1 . . Core 3 | . 10 14 4 . . . . . . . . Reactor 2 | . . . . . . . . 1 . . 6 Treads 10 | . 9 . 13 12 . 3 . . 1 10 13 Wheel 10 | . 18 28 14 15 17 15 . . . . 1 Hover 1 | . . . . . . . 8 10 8 . 1 Device 6 | . 14 14 1 . 7 13 7 14 9 5 7 Storage 6 | . 14 14 9 7 4 4 . . . . 1 Processor 3 | . . . . . . . 4 5 6 10 10 Protection 3 | . . . 8 7 4 1 . . . . . Energy Gun 4 | . 14 14 3 . 6 7 . . 1 . 3 Energy Cannon 3 | . . . 8 5 . 1 . . . . 3 Ballistic Gun 10 | . 14 14 11 10 11 6 . . . . 12 Ballistic Cannon 3 | . . . 3 12 11 8 . . . . . Piercing Weapon 1 | . . . . . . . . . . . 3 Peak Build Rating 150 | 8 11 11 40 49 82 86 48 62 60 42 150 Average Rating 54 | 6 9 10 29 44 78 61 36 56 39 41 107 On Entrance 32 | . 8 10 11 38 49 85 21 48 54 42 28 Naked Turns . | . . . . . . . . . . . . Heaviest Build 289 | 13 88 88 260 263 289 289 15 38 23 3 244 Greatest Support 215 | 10 20 20 40 40 57 57 24 16 140 3 215 Greatest Overweight (x) 24 | 1 8 4 24 13 7 8 . 2 2 . 8 Average Overweight (x) 3 | . 4 4 10 11 4 3 . . . . . Largest Inventory Capacity 35 | 8 25 25 35 35 35 35 5 5 5 5 35 Average Capacity 20 | 7 19 25 31 35 35 27 5 5 5 5 10 Most Carried 35 | 8 25 21 35 35 35 25 5 5 5 5 15 Average Carried 17 | 3 13 19 28 34 22 22 4 4 4 5 7 Final Capacity 35 | 8 25 25 35 35 35 5 5 5 5 5 15 Final Carried 35 | 8 18 21 35 35 21 5 5 5 5 5 11 Scrap Engine Consumption 38 | . . . . . 9 6 11 2 10 . . Constructs Created 8 | . . . . . 2 2 1 1 2 . . Constructs Modified 2 | . . . . . . . 2 . . . . Class Distribution -------------------- 27% | Hauler-Gunner 26% | Mutant 18% | Scavenger-Mutant 15% | Scavenger-Executioner 7% | Scavenger-Gunner Dominant Class ---------------- Scavenger-Mutant | -10/Materials Scavenger-Mutant | -10/Mines Hauler-Gunner | -10/Subcaves Hauler-Gunner | -7/Recycling Hauler-Executioner | -5/Factory Scavenger-Executioner | -5/DSF Mutant | -4/Factory Mutant | -4/Waste Mutant | -4/Factory Mutant | -4/Extension Scavenger-Executioner | -3/Research Resources | -11 -10 -10 -10 -7 -5 -5 -4 -4 -4 -4 -3 ----------- Run | Yrd Mat Min Sub Rec Fac DSF Fac Was Fac Ext Res Matter Collected 5915 | 229 249 22 525 628 . 265 166 . 100 . 3731 Remotely . | . . . . . . . . . . . . Salvage Created 6687 | 134 533 15 425 588 . 99 89 . 69 . 4735 Parts 357 | 16 42 1 29 27 . 5 4 . 5 . 228 Haulers Intercepted 4 | . 1 . . . . . . . . . 3 Recyclers Shooed 6 | . 2 . . 1 . . . . . . 3 Parts Field Recycled . | . . . . . . . . . . . . Retrieved Matter . | . . . . . . . . . . . . Parts Self-Destructed 18 | . . . 18 . . . . . . . . Prevented . | . . . . . . . . . . . . Kills | -11 -10 -10 -10 -7 -5 -5 -4 -4 -4 -4 -3 ------- Run | Yrd Mat Min Sub Rec Fac DSF Fac Was Fac Ext Res Combat Hostiles Destroyed 95 | . 14 . 14 5 . 2 2 . 1 . 57 Melee 9 | . . . . . . . . . 1 . 8 Guns 53 | . 14 . 3 1 . 1 2 . . . 32 Cannons 26 | . . . 7 4 . 1 . . . . 14 AOE 5 | . . . 4 . . . . . . . 1 Classes Destroyed 19 | 2 5 . 3 3 . 1 . . . . 5 Worker 12 | . 2 1 . . . . 2 . . . 7 Builder 5 | . . . . 1 . . . . . . 4 Tunneler 5 | 5 . . . . . . . . . . . Hauler 4 | . 1 . . . . . . . . . 3 Recycler 8 | 1 . . . 3 . . . . . . 4 Operator 1 | . . . . . . . . . . . 1 Turret 2 | . . . 2 . . . . . . . . Watcher 2 | . 1 . . . . . . . . . 1 Swarmer 20 | . 6 . 4 . . . 2 . . . 8 Saboteur 1 | . . . . . . . . . . . 1 Grunt 24 | . 8 . . . . . . . 1 . 15 Brawler 1 | . . . . . . . . . . . 1 Sentry 7 | . . . . 3 . . . . . . 4 Specialist 2 | . . . . . . 2 . . . . . Hunter 6 | . . . . . . . . . . . 6 Programmer 22 | . . . . . . . . . . . 22 Cobbler 1 | . . . 1 . . . . . . . . Subdweller 10 | . . . 10 . . . . . . . . Scrapper 3 | . . . . 3 . . . . . . . Best Kill Streak 10 | 6 5 1 6 4 . 2 2 . 1 . 10 Combat Bots Only 9 | . 5 . 4 2 . 2 2 . 1 . 9 Max Kills in Single Turn 3 | 1 1 1 2 1 . 1 1 . 1 . 3 Gunslinging 1 | . . . . . . . . . . . 1 Exploded 2 | . . . 2 . . . . . . . 1 Melee 1 | . . . . . . . . . 1 . 1 Uniques/NPCs Destroyed . | . . . . . . . . . . . . Combat | -11 -10 -10 -10 -7 -5 -5 -4 -4 -4 -4 -3 -------- Run | Yrd Mat Min Sub Rec Fac DSF Fac Was Fac Ext Res Hostile Shots Fired 1330 | . 56 . 50 34 . 72 86 . 171 56 805 Missed 418 | . 14 . 15 17 . 17 41 . 68 23 223 Hits 912 | . 42 . 35 17 . 55 45 . 103 33 582 Melee 8 | . . . . . . 2 . . . . 6 Projectile 904 | . 42 . 35 17 . 53 45 . 103 33 576 AOE 2 | . . . . . . . . . 2 . . Critical Strikes 47 | . 1 . 1 . . 3 . . 6 1 35 Part Disruptions 3 | . . . . . . . . . . . 3 Damage Taken 18097 | . 428 . 695 192 . 1348 705 . 2025 682 12022 Core 2557 | . 122 . 108 . . 123 257 . 550 95 1302 Absorbed by Shields 200 | . . . . . . 89 . . . . 111 Reduced by Siege Mode 322 | . . . . . . . . . . . 322 Redirected to Shielding 117 | . . . 12 . . . . . . . 105 Regen/Repaired (Parts) 245 | . . . . . . 100 18 . . . 127 Core Remaining (%) 54 | 100 . . . 8 . 87 . . . 21 . Volleys Fired 347 | 17 62 1 54 19 . 6 11 . 2 . 175 Largest 8 | 2 2 2 4 4 . 6 1 . 2 . 8 Hottest 456 | 60 60 60 193 153 . 288 35 . 104 . 456 Shots Fired 907 | 29 125 2 118 68 . 31 11 . 3 . 520 Gun 695 | 29 125 2 56 29 . 19 11 . 2 . 422 Cannon 203 | . . . 53 39 . 12 . . 1 . 98 Launcher 9 | . . . 9 . . . . . . . . Special . | . . . . . . . . . . . . Kinetic 607 | 12 62 1 61 58 . 17 11 . . . 385 Thermal 213 | 17 63 1 48 10 . 14 . . 3 . 57 Explosive 9 | . . . 9 . . . . . . . . Electromagnetic 78 | . . . . . . . . . . . 78 Robot Hit Streak 22 | 12 7 3 17 11 . 14 3 . . . 22 Robot Miss Streak 6 | 1 3 . 2 3 . 3 1 . 1 . 6 Penetration Max 2 | . . . . . . . . . . . 2 Secondary Targets 11 | . 3 . . . . . . . . . 8 Max Gunslinging Chain 2 | . 1 . . . . . . . . . 2 Shots Hit Robots 605 | 20 77 2 64 36 . 26 18 . 6 . 356 Core Hits 264 | 7 32 1 28 23 . 10 4 . 5 . 154 Critical Kills 10 | . . . . . . . . . . . 10 Critical Parts Destroyed 16 | . . . 1 . . . 1 . . . 14 Critical Strikes 45 | . . . 3 . . . 1 . 3 . 38 Burn 1 | . . . . . . . . . . . 1 Destroy 27 | . . . 3 . . . . . . . 24 Blast 8 | . . . . . . . . . . . 8 Corrupt 1 | . . . . . . . . . . . 1 Smash 1 | . . . . . . . 1 . . . . Sever 3 | . . . . . . . . . 3 . . Impale 4 | . . . . . . . . . . . 4 Melee Attacks 96 | . . . . . . . 13 . 8 . 75 Impact 13 | . . . . . . . 13 . . . . Slashing 8 | . . . . . . . . . 8 . . Piercing 75 | . . . . . . . . . . . 75 Sneak Attacks 8 | . . . . . . . 4 . 1 . 3 Combat Hostiles . | . . . . . . . . . . . . Follow-up Attacks 18 | . . . . . . . . . . . 18 Damage Inflicted 15185 | 209 747 21 1478 684 . 585 593 . 138 . 10730 Guns 9463 | 209 747 21 360 324 . 329 197 . . . 7276 Cannons 3200 | . . . 783 360 . 256 . . . . 1801 Explosions 458 | . . . 335 . . . . . . . 123 Melee 2053 | . . . . . . . 396 . 130 . 1527 Ramming 11 | . . . . . . . . . 8 . 3 Kinetic 8656 | 45 332 10 439 563 . 349 197 . . . 6721 Thermal 2855 | 164 415 11 704 121 . 236 . . . . 1204 Explosive 458 | . . . 335 . . . . . . . 123 Electromagnetic 1152 | . . . . . . . . . . . 1152 Impact 396 | . . . . . . . 396 . . . . Slashing 130 | . . . . . . . . . 130 . . Piercing 1527 | . . . . . . . . . . . 1527 Highest Corruption 43 | . 2 2 2 2 . . . . 5 5 43 Average Corruption 11 | . 2 2 2 2 . . . . 3 5 27 Corruption Purged 24 | . . . . . . . . . . . 24 Corruption Blocked . | . . . . . . . . . . . . Effects 210 | . 5 6 23 18 . . . . 3 1 154 Message Errors 43 | . 1 2 4 2 . . . . 2 1 31 Matter Fused 38 | . . . 8 4 . . . . . . 26 Heat Flow Errors 27 | . 2 . 2 4 . . . . . . 19 Energy Discharges 18 | . . 1 2 2 . . . . . . 13 Parts Rejected 2 | . . . . . . . . . . . 2 Parts Fused 2 | . 1 . . . . . . . . . 1 Data Loss (minor) 21 | . . 2 2 1 . . . . . . 16 Data Loss (major) 11 | . . 1 1 2 . . . . 1 . 6 Misfires 13 | . 1 . 3 2 . . . . . . 7 Alerts 5 | . . . 1 1 . . . . . . 3 Misdirections 3 | . . . . . . . . . . . 3 Weapon Failures 27 | . . . . . . . . . . . 27 Overload Shots . | . . . . . . . . . . . . Overflow Damage 216 | . . . . . . . 101 . . . 115 Projectiles 84 | . . . . . . . . . . . 84 Explosions . | . . . . . . . . . . . . Melee 132 | . . . . . . . 101 . . . 31 Knockbacks 5 | . . . . 1 . . 2 . . . 2 Impact 2 | . . . . . . . 2 . . . . Kinetic 3 | . . . . 1 . . . . . . 2 Secondary . | . . . . . . . . . . . . Self-Inflicted Damage 129 | . . . . . . . . . 3 . 126 Shots 1 | . . . . . . . . . . . 1 Rammed 7 | . . . . . . 1 . . 2 . 4 Targets Rammed 7 | . . . . . . 1 . . 2 . 4 Kicked . | . . . . . . . . . . . . Crushed . | . . . . . . . . . . . . Highest Temperature 661 | 20 250 24 248 249 . 69 . . 53 . 661 Average Temperature 85 | 9 37 14 27 85 . 25 . . 21 . 124 Received Heat Transfer 1871 | . 195 . 54 90 . 189 9 . 318 27 989 Effects 9 | . . . . 1 . . . . . . 8 Shutdowns 2 | . . . . . . . . . . . 2 Energy Bleed 1 | . . . . 1 . . . . . . . Matter Decay 1 | . . . . . . . . . . . 1 Damage (minor) 1 | . . . . . . . . . . . 1 Damage (major) 4 | . . . . . . . . . . . 4 Siege Activations 3 | . . . . . . . . . . . 3 Total Turns 50 | . . . . . . . . . . . 50 Longest Duration 41 | . . . . . . . . . . . 41 Martial Activations . | . . . . . . . . . . . . Shielding Activations . | . . . . . . . . . . . . Robots Disrupted . | . . . . . . . . . . . . Combat Hostiles . | . . . . . . . . . . . . Robots Corrupted 3 | . . . . . . . 1 . . . 2 Combat Hostiles 2 | . . . . . . . . . . . 2 Parts Fried 6 | . . . . . . . 2 . . . 4 Impact Corruptions 5 | . . . . . . . 5 . . . . Robots Melted . | . . . . . . . . . . . . Combat Hostiles . | . . . . . . . . . . . . Parts Melted 7 | . 1 . 2 2 . . . . . . 2 Heat Transferred 4653 | 375 950 25 1148 259 . 336 . . . . 1560 Parts Sabotaged 2 | . . . . . . . . . . . 2 Parts Stolen . | . . . . . . . . . . . . Parts Stripped . | . . . . . . . . . . . . Power Chain Reactions . | . . . . . . . . . . . . Alert | -11 -10 -10 -10 -7 -5 -5 -4 -4 -4 -4 -3 ------- Run | Yrd Mat Min Sub Rec Fac DSF Fac Was Fac Ext Res Maximum Alert Level 3 | . . . . . 2 1 . . . . 3 Low Security (%) 69 | 100 100 100 . 100 . . 100 100 100 100 32 Level 1 16 | . . . . . . 100 . . . . 36 Level 2 14 | . . . . . 100 . . . . . 31 Level 3 . | . . . . . . . . . . . . Level 4 . | . . . . . . . . . . . . Level 5 . | . . . . . . . . . . . . High Security . | . . . . . . . . . . . . Max Security . | . . . . . . . . . . . . Peak Influence 715 | 20 194 5 . 146 555 376 145 35 50 107 715 Initial 550 | . . 1 . 119 550 346 123 35 . 19 55 Average 173 | 5 95 . . 44 527 339 98 8 11 22 330 Influence Increases 3920 | 30 388 5 255 303 555 50 208 . 179 127 1820 Destroy 0b10 Robot/C 1700 | . 280 . 120 60 . 40 40 . 20 . 1140 Destroy 0b10 Robot/NC 185 | 30 20 5 . 20 . . 10 . . . 100 Destroy Leader 312 | . 44 . . . . 10 . . . . 258 Successful Hack 119 | . 14 . . 31 5 . 32 . 18 7 12 Select Force Hacks 180 | . . . . 180 . . . . . . . Disable Machine 75 | . . . . . . . . . . . 75 Destroy Structure 124 | . . . . 12 . . 6 . 6 . 100 Advance Influence 550 | . . . . . 550 . . . . . . Partial Spotted 45 | . . . . . . . 15 . . . 30 Lose Combat Pursuer 630 | . 30 . 135 . . . 105 . 135 120 105 Influence Decreases 3226 | 30 382 11 6 552 60 309 343 101 139 60 1233 Entered New Map 536 | . . 5 . 130 . 149 113 66 . 21 52 Time Decay 1896 | 30 372 6 6 422 60 . 190 35 85 29 661 Lost Part 794 | . 10 . . . . 160 40 . 54 10 520 Squads Dispatched 24 | . 1 . . . . 2 1 . 1 1 18 Investigation 5 | . 1 . . . . . . . . 1 3 Extermination 8 | . . . . . . . 1 . . . 7 Reinforcement 8 | . . . . . . 2 . . 1 . 5 Assault 2 | . . . . . . . . . . . 2 Garrison 1 | . . . . . . . . . . . 1 Intercept . | . . . . . . . . . . . . Searches Triggered . | . . . . . . . . . . . . Construction Impeded 3 | . . . . . . . . . 1 . 2 Haulers Reinforced 1 | . . . . . . . . . . . 1 Active Scanning Responses . | . . . . . . . . . . . . Cargo Convoy Interrupts 1 | . . . . . . . . . . . 1 Stealth | -11 -10 -10 -10 -7 -5 -5 -4 -4 -4 -4 -3 --------- Run | Yrd Mat Min Sub Rec Fac DSF Fac Was Fac Ext Res Distress Signals 9 | . 2 . . . . . . . . 1 6 Communications Jammed . | . . . . . . . . . . . . Distress Signals . | . . . . . . . . . . . . Times Spotted 185 | . 22 . 18 5 . 8 10 5 15 10 92 Peak Tracking Total 13 | . 5 . 3 2 . 7 4 4 7 9 13 Tactical Retreats 21 | . 1 . 2 . . . 4 1 6 2 5 Traps | -11 -10 -10 -10 -7 -5 -5 -4 -4 -4 -4 -3 ------- Run | Yrd Mat Min Sub Rec Fac DSF Fac Was Fac Ext Res Traps Triggered 9 | . 1 . 2 . . 3 1 . . . 2 Indirectly . | . . . . . . . . . . . . Trap Hack Attempts . | . . . . . . . . . . . . Triggered . | . . . . . . . . . . . . Disarmed . | . . . . . . . . . . . . Reprogrammed . | . . . . . . . . . . . . Reused . | . . . . . . . . . . . . Traps Extracted . | . . . . . . . . . . . . Installed . | . . . . . . . . . . . . Triggered . | . . . . . . . . . . . . Machines | -11 -10 -10 -10 -7 -5 -5 -4 -4 -4 -4 -3 ---------- Run | Yrd Mat Min Sub Rec Fac DSF Fac Was Fac Ext Res Machines Disabled 9 | . . . 4 . . . . . . . 5 Max in Single Turn 2 | . . . 2 . . . . . . . 1 Garrison Access 1 | . . . . . . . . . . . 1 Machines Repaired . | . . . . . . . . . . . . Machines Dismantled . | . . . . . . . . . . . . Machines Sabotaged . | . . . . . . . . . . . . Overloaded Fab Kills . | . . . . . . . . . . . . Hacking | -11 -10 -10 -10 -7 -5 -5 -4 -4 -4 -4 -3 --------- Run | Yrd Mat Min Sub Rec Fac DSF Fac Was Fac Ext Res Machines Accessed 34 | . 6 . 1 13 1 . 4 . 1 1 7 Terminals 14 | . 4 . . 4 1 . . . . 1 4 Fabricators . | . . . . . . . . . . . . Repair Stations 3 | . . . . . . . 1 . 1 . 1 Recycling Units 14 | . 2 . . 8 . . 3 . . . 1 Scanalyzers . | . . . . . . . . . . . . Garrison Access 1 | . . . . . . . . . . . 1 Total Hacks 85 | . 14 . 1 33 1 . 12 . 5 2 17 Successful 33 | . 3 . 1 15 1 . 6 . 3 1 3 Failed 52 | . 11 . . 18 . . 6 . 2 1 14 Catastrophic 8 | . 3 . . . . . 1 . . 1 3 Database Lockouts . | . . . . . . . . . . . . Manual 28 | . 3 . . 19 . . 2 . . . 4 Terminals 35 | . 11 . . 12 1 . . . . 2 9 Fabricators . | . . . . . . . . . . . . Repair Stations 13 | . . . . . . . 4 . 5 . 4 Recycling Units 31 | . 3 . . 19 . . 8 . . . 1 Scanalyzers . | . . . . . . . . . . . . Garrison Access 3 | . . . . . . . . . . . 3 Terminal Hacks 9 | . 1 . 1 4 1 . . . . 1 1 Record 1 | . . . . . . . . . . . 1 Part Schematic 2 | . . . . 2 . . . . . . . Open Door 1 | . . . . . . . . . . 1 . Open DSF 1 | . . . . . 1 . . . . . . Locate Traps 1 | . 1 . . . . . . . . . . Proto ID Catalog 1 | . . . 1 . . . . . . . . Release Object 2 | . . . . 2 . . . . . . . Fabricator Hacks . | . . . . . . . . . . . . Repair Station Hacks 5 | . . . . . . . 2 . 3 . . Refit 5 | . . . . . . . 2 . 3 . . Recycling Unit Hacks 8 | . 2 . . 3 . . 3 . . . . Retrieve Components 8 | . 2 . . 3 . . 3 . . . . Scanalyzer . | . . . . . . . . . . . . Garrison Access Hacks 1 | . . . . . . . . . . . 1 Seal Access 1 | . . . . . . . . . . . 1 Unauthorized Hacks 10 | . . . . 8 . . 1 . . . 1 Terminals 2 | . . . . 2 . . . . . . . Botnet 2 | . . . . 2 . . . . . . . Fabricators . | . . . . . . . . . . . . Repair Stations 1 | . . . . . . . . . . . 1 Patch 1 | . . . . . . . . . . . 1 Recycling Units 7 | . . . . 6 . . 1 . . . . Recyclers 1 | . . . . . . . 1 . . . . Tunnel 6 | . . . . 6 . . . . . . . Scanalyzers . | . . . . . . . . . . . . Garrison Access . | . . . . . . . . . . . . Data Cores Recovered . | . . . . . . . . . . . . Used . | . . . . . . . . . . . . Hacking Detections 23 | . 5 . . 7 . . 4 . . 1 6 Full Trace Events 9 | . 1 . . 5 . . . . . 1 2 Feedback Events . | . . . . . . . . . . . . Feedback Blocked . | . . . . . . . . . . . . Robot Schematics Acquired . | . . . . . . . . . . . . Robots Built . | . . . . . . . . . . . . Authchips . | . . . . . . . . . . . . Time . | . . . . . . . . . . . . Total Robot Build Rating . | . . . . . . . . . . . . Part Schematics Acquired 2 | . . . . 2 . . . . . . . Parts Built . | . . . . . . . . . . . . Authchips . | . . . . . . . . . . . . Time . | . . . . . . . . . . . . Total Part Build Rating . | . . . . . . . . . . . . Parts Repaired . | . . . . . . . . . . . . Time . | . . . . . . . . . . . . Parts Recycled . | . . . . . . . . . . . . Recycled Matter . | . . . . . . . . . . . . Retrieved Matter . | . . . . . . . . . . . . Retrieved Components 14 | . 9 . . 4 . . 1 . . . . Parts Scanalyzed . | . . . . . . . . . . . . Part Schematics Acquired . | . . . . . . . . . . . . Parts Damaged . | . . . . . . . . . . . . Bothacking | -11 -10 -10 -10 -7 -5 -5 -4 -4 -4 -4 -3 ------------ Run | Yrd Mat Min Sub Rec Fac DSF Fac Was Fac Ext Res Used RIF Installer . | . . . . . . . . . . . . Robots Hacked . | . . . . . . . . . . . . Non-combat . | . . . . . . . . . . . . Combat . | . . . . . . . . . . . . Robot Hacks Applied . | . . . . . . . . . . . . Relay Couplers Released . | . . . . . . . . . . . . Fabnet Peak Effective % . | . . . . . . . . . . . . Robots Rewired . | . . . . . . . . . . . . Allies Hacked . | . . . . . . . . . . . . Hacks Repelled . | . . . . . . . . . . . . Allies | -11 -10 -10 -10 -7 -5 -5 -4 -4 -4 -4 -3 -------- Run | Yrd Mat Min Sub Rec Fac DSF Fac Was Fac Ext Res Total Allies 1 | . . 1 . . . . . . . . . Largest Group 1 | . . 1 . . . . . . . . . Highest-Rated Group 31 | . . 31 . . . . . . . . . Highest-Rated Ally 31 | . . 31 . . . . . . . . . Total Orders . | . . . . . . . . . . . . Ally Attacks . | . . . . . . . . . . . . Total Damage . | . . . . . . . . . . . . Kills . | . . . . . . . . . . . . Allies Corrupted . | . . . . . . . . . . . . Allies Melted . | . . . . . . . . . . . . Intel | -11 -10 -10 -10 -7 -5 -5 -4 -4 -4 -4 -3 ------- Run | Yrd Mat Min Sub Rec Fac DSF Fac Was Fac Ext Res Active Infowar (turns) 1702 | . 742 731 229 . . . . . . . . Seismic 1702 | . 742 731 229 . . . . . . . . Robot Analysis Total . | . . . . . . . . . . . . Derelict Logs Recovered 4 | . . 2 2 . . . . . . . . Drone Launches . | . . . . . . . . . . . . Drone Recoveries . | . . . . . . . . . . . . Exploration | -11 -10 -10 -10 -7 -5 -5 -4 -4 -4 -4 -3 ------------- Run | Yrd Mat Min Sub Rec Fac DSF Fac Was Fac Ext Res Turns Passed 9474 | 128 932 731 2129 1424 126 141 383 191 317 70 2902 Spaces Moved 4951 | 73 503 485 732 496 38 53 392 182 393 139 1465 Core 520 | 9 . . . . . 4 32 . 189 139 147 Treads 712 | . . . 6 . . . . . 4 . 702 Legs 242 | . . . . . . . . . 3 . 239 Wheels 2531 | 64 503 485 726 496 38 49 . . . . 170 Hover 933 | . . . . . . . 360 182 197 . 194 Flight 13 | . . . . . . . . . . . 13 Fastest Speed 42 | 50 80 140 140 170 163 50 50 79 50 50 42 Average Speed 149 | 90 140 140 243 250 170 163 76 103 67 50 132 Slowest Speed 640 | 100 200 140 640 275 185 204 88 239 180 50 250 Overloaded Moves . | . . . . . . . . . . . . Propulsion Burnouts . | . . . . . . . . . . . . Robots Hopped . | . . . . . . . . . . . . Potential Cave-ins . | . . . . . . . . . . . . Cave-ins Triggered . | . . . . . . . . . . . . Exploration Rate (%) 41 | 4 74 74 57 85 1 48 10 77 9 25 32 Regions Visited 11 Branch Regions 4 Pre-discovered Areas 7 | . . . 1 6 . . . . . . . Known Exits Taken 1 | . . . . . 1 . . . . . . Unknown Exits Taken 7 | 1 1 1 1 1 . . . . 1 1 . Scrap Searched 2 | . . 2 . . . . . . . . . Spaces Dug 11 | . . . . . . . 1 . 2 . 8 Terrain Destroyed 100 | . . . 23 13 . . 5 . 3 . 56 Melee 10 | . . . . . . . 1 . 2 . 7 Projectile 55 | . . . 3 13 . . 4 . 1 . 34 AOE 33 | . . . 20 . . . . . . . 13 Terrain Rammed . | . . . . . . . . . . . . Walls Destroyed . | . . . . . . . . . . . . Machines Disabled . | . . . . . . . . . . . . Actions | -11 -10 -10 -10 -7 -5 -5 -4 -4 -4 -4 -3 --------- Run | Yrd Mat Min Sub Rec Fac DSF Fac Was Fac Ext Res Total 6271 | 107 620 535 980 638 104 92 441 184 427 138 2005 Wait 378 | 1 15 47 115 85 51 3 8 . 3 . 50 Move 4941 | 72 502 484 731 495 37 52 392 181 392 138 1465 Hop . | . . . . . . . . . . . . Pick Up 150 | 9 21 3 45 13 . 9 4 1 1 . 44 Fast Attach 126 | 7 1 . 8 3 . . 2 . 8 . 97 Attach 55 | . 1 . 4 . 8 6 5 1 1 . 29 Detach 16 | . . . . . 1 1 2 . 2 . 10 Swap 30 | . 4 . 7 5 . 1 . . . . 13 Drop 140 | 1 14 . 16 17 7 5 4 1 8 . 67 Fire 347 | 17 62 1 54 19 . 6 11 . 2 . 175 Melee 71 | . . . . . . . 13 . 8 . 50 Ram 7 | . . . . . . . . . 2 . 5 Kick . | . . . . . . . . . . . . Crush 1 | . . . . . . 1 . . . . . Escape Stasis 8 | . . . . . . 8 . . . . . Rewire 1 | . . . . 1 . . . . . . . Trap . | . . . . . . . . . . . . Miscellaneous . | . . . . . . . . . . . . Route ------- -11/Scrapyard -10/Materials (discovered 4 exits: *Mat x2 / [*Min x2]) -10/Mines (discovered 3 exits: *Mat x2 / *Sub) -10/Subcaves -7/Recycling -5/Factory -5/DSF -4/Factory (discovered 2 exits: [*Upp] / *Ext) -4/Waste -4/Factory -4/Extension -3/Research History --------- Turn | Location | Event 9 | -11/Scrapyard | Discovered new exit (range 16) 129 | -11/Scrapyard | Entered Materials 243 | -10/Materials | Discovered new exit (range 12) 300 | -10/Materials | Build established: Mutant 693 | -10/Materials | Discovered new exit (range 13) 696 | -10/Materials | Build established: Scavenger-Mutant 845 | -10/Materials | Discovered new exit (range 4) 845 | -10/Materials | Discovered new exit (range 13) 1061 | -10/Materials | Entered Mines 1097 | -10/Mines | Discovered new exit (range 5) 1129 | -10/Mines | Discovered new exit (range 9) 1130 | -10/Mines | Received a Mining Laser from a helpful Derelict 1184 | -10/Mines | Identified exit to Materials 1792 | -10/Mines | Entered Subcaves 1793 | -10/Subcaves | Approached by a straggling Scientist 1970 | -10/Subcaves | Core integrity fell below 50% 2120 | -10/Subcaves | Visited 4L-MR0's lab 2148 | -10/Subcaves | Found Tower Shield 2166 | -10/Subcaves | Build established: Mutant 2563 | -10/Subcaves | Core integrity fell below 20% 2593 | -10/Subcaves | Attached Tower Shield, gained temporary slots: Power, Propulsion x2, Utility x2, Weapon x2 2917 | -10/Subcaves | A swath of the cavern ceiling suddenly collapsed 2968 | -10/Subcaves | Learned location of Storage (-7) 3032 | -10/Subcaves | Build established: Hauler-Gunner 3615 | -10/Subcaves | Shifting Twisted Machinery released Sub. Monowheel 3631 | -10/Subcaves | Shifting Twisted Machinery released Sub. Monowheel 3766 | -10/Subcaves | Learned Materials terminal intel 3871 | -10/Subcaves | Ambushed by Subdweller buried in earth 3900 | -10/Subcaves | Discovered new exit (range 9) 3921 | -10/Subcaves | Entered Recycling 4727 | -7/Recycling | Discovered new exit (range 8) 4964 | -7/Recycling | Scanned before Scraplab entrance 5005 | -7/Recycling | Entered Scraplab 5027 | -7/Recycling | Discovered new exit (range 2) 5086 | -7/Recycling | Angered Scraplab inhabitants 5205 | -7/Recycling | Found Prototype Device 5345 | -7/Recycling | Entered Factory 5345 | -5/Factory | Evolved 10 slots: Power x1, Propulsion x2, Utility x3, Weapon x4 5347 | -5/Factory | Identified Scrap Engine 5363 | -5/Factory | Identified exit to DSF 5471 | -5/Factory | Entered DSF 5495 | -5/DSF | Additional patrols routed to DSF 5585 | -5/DSF | Discovered new exit (range 16) 5612 | -5/DSF | Entered Factory 5612 | -4/Factory | Evolved 2 slots: Propulsion x2 5638 | -4/Factory | Lost 14 parts (2p5n1u6w) 5849 | -4/Factory | Lost 3 parts (2p1w) 5877 | -4/Factory | Spotted B-86 Titan 5907 | -4/Factory | Build established: Mutant 5968 | -4/Factory | Discovered new exit (range 4) 5968 | -4/Factory | Discovered new exit (range 11) 5995 | -4/Factory | Manually triggered Chute Trap 5995 | -4/Factory | Sucked down chute 5995 | -4/Factory | Entered Waste 6010 | -4/Waste | EMP discharged 6077 | -4/Waste | Spotted C-40 Crusher 6098 | -4/Waste | Spotted C-40 Crusher 6110 | -4/Waste | EMP discharged 6114 | -4/Waste | Spotted C-40 Crusher 6116 | -4/Waste | Spotted C-40 Crusher 6130 | -4/Waste | Spotted C-40 Crusher 6167 | -4/Waste | Discovered new exit (range 12) 6167 | -4/Waste | Spotted C-40 Crusher 6186 | -4/Waste | Entered Factory 6369 | -4/Factory | Lost 7 parts (3n1u3w) 6434 | -4/Factory | Core integrity fell below 50% 6474 | -4/Factory | Lost 10 parts (2p6n1u1w) 6489 | -4/Factory | Discovered new exit (range 16) 6503 | -4/Factory | Entered Extension 6563 | -4/Extension | Spotted B-86 Titan 6567 | -4/Extension | Spotted B-86 Titan 6572 | -4/Extension | Discovered new exit (range 3) 6573 | -4/Extension | Entered Research 6573 | -3/Research | Evolved 2 slots: Weapon x2 6875 | -3/Research | System corruption reached 10% 6922 | -3/Research | Lost 14 parts (2p6n2u4w) 6989 | -3/Research | Garrison activated, responded to threat 7530 | -3/Research | Lost 3 parts (1n2w) 7574 | -3/Research | Core integrity fell below 50% 7611 | -3/Research | Lost 11 parts (5n1u5w) 7651 | -3/Research | Spotted B-86 Titan 7799 | -3/Research | Lost 5 parts (1p1n1u2w) 7857 | -3/Research | Lost 4 parts (2n2w) 8040 | -3/Research | System corruption reached 30% 8055 | -3/Research | Cargo convoy interrupted 8056 | -3/Research | Lost 4 parts (2n1u1w) 8097 | -3/Research | Lost 3 parts (1n1u1w) 8128 | -3/Research | Core integrity fell below 20% 8512 | -3/Research | Build established: Scavenger-Executioner 8618 | -3/Research | Destroyed 9 combat bots 8750 | -3/Research | Found Prototype Processor 8750 | -3/Research | Identified Exp. Target Analyzer 9323 | -3/Research | First assault squad dispatched 9475 | -3/Research | Destroyed by G-73 Enforcer with Phase Gun Last Messages --------------- 09459_ K-01 Serf collects debris. 09460_ System corrupted: KE Penetrator jammed. 09460_ Slug penetrates Wall. 09465_ Railgun destroyed. 09465_ Slug penetrates B-74 Champion. 09467_ Slug penetrates Wall. 09468_ Imp. Targeting Computer destroyed. 09468_ Gamma Rifle destroyed. 09468_ System corrupted by crushing effect (+2). 09468_ System corrupted by crushing effect (+1). 09468_ Lgt. Antimatter Reactor destroyed. 09469_ System corrupted: Com. HERF Cannon failed to cycle. 09469_ Slug penetrates Wall. 09470_ Penetrated by Slug. 09470_ Slug penetrates Wall. 09472_ Activated siege mode. 09473_ Slug penetrates Wall. 09474_ B-74 Champion system terminally corrupted. Map ----- +----------------------------------------------------+ | ?????????????????????????????????????????????????? | | ?????????????????????????????????????????????????? | | ?????????????????????????????????????????????????? | | ??????????????????????????? ??????????????????? | | ?????????????????????????? ??????????????????? | | ?????????????????????????? #?????????????????? | | ?????????????????????????? #?????????????????? | | ??????????????????????????#" #?????????????????? | | ??????????????????????????#%" #?????????????????? | | ??????????????????????????#%" #?????????????????? | | ??????????????????????????#" #?????????????????? | | ??????????????????????????# #?????????????????? | | ??????????????????????????# ##########????????? | | ??????????????????????????+ # #????????? | | ??????????????????????????# # #????????? | | ??????????????????????????# # !#????????? | | ??????????????????????????# # #????????? | | ??????????????????????????# # =#????????? | | ???????????????#??????????#* # #????????? | | ?????????????###+##########% # """ =#????????? | | ?????????????# #/ + """ #????????? | | ?????????????# # # """ #????????? | | ?????????????# # ##########????????? | | ?????????????# # =################### | | ?????????????# #%g*[!%!=! | | ?????????????# =@g[ !*= !! w | | ?????????????# *=%# |== ! | | ?????????????# /!# =! | | ?????????????# w / ####+###########+##### | | ?????????????# =! # ! #??# # | | ?????????????# %%[ # #??# # | | ?????????????# !=[ # """ #??# # | | ?????????????############## """ #??# # | | ??????????????????????????# """ #??# # | | ??????????????????????????# #??# + | | ??????????????????????????# #??# # | | ??????????????????????????# % #??# # | | ??????????????????????????# #??# [] # | | ??????????????????????????##########?########### | | ?????????????????????????????????????# # | | ?????????????????????????????????????# # | | ?????????????????????????????????????# " + | | ?????????????????????????????????????# F # | | ?????????????????????????????????????# " # | | ?????????????????????????????????????# "" #^^ | | ?????????????????????????????????????# [" | | ?????????????????????????????????????# # | | ?????????????????????????????????????########### | | ???????????????????????????????????????????????# | | ???????????????????????????????????????????????### | +----------------------------------------------------+ Best States ------------- Heat Dissipation 103 Coolant Potential 100 Energy Generation 43 Energy Capacity 430 Matter Stores 300 Matter Capacity 300 Sight Range 16 Terrain Scan Density 10 EM Shielding 3 Armor Coverage 2000 Weapon Shielding 66 Weapon Cycling 25 Evasion (%) 70 Targeting Accuracy 26 Target Analysis 8 Core Analysis 6 Recoil Reduction 6 Item Schematics ----------------- Hvy. Treads | -7/Recycling | Hacked Field Propulsion Drive | -7/Recycling | Hacked Robot Schematics ------------------ None Fabricated ------------ Nothing Repaired ---------- Nothing Alien Tech Used ----------------- None Achievements -------------- Executioner Challenges ------------ None Game ------ Seed FluxRecoilBooster Manual? 0 Play Time 01:17:27 Cumulative 257.2 hours Start 2025.06.11 @ 17:52:01 End 2025.06.11 @ 19:10:55 Sessions 1 Manual Loads 0 Difficulty Rogue Special Mode None Game No. 244 Rogue 244 Adventurer 0 Explorer 0 Win Type - Total 1 Types 1/0/0/0/0/0/0/0/0/0 Lore% 75 Gallery% 77 Achievement% 69 Wizard Run 0 Options --------- Layout 1 ASCII 0 Keyboard 0 Movement Numpad Keybinds 0 Fullscreen 1 Font 24/Smallcaps Map View 50x35 Zoom Use 0% Tactical HUD 1 Map Filters NONE Filters NONE Steam 1 RUN: 7ca73aee-9f46-4ecd-b885-d228f9e282df